[Event "4th Memorial Warakomska-A 2020"]
[Site "Suwalki"]
[Date "2020.08.08"]
[Round "4.4"]
[White "Lewicki, Miroslaw"]
[Black "Jarocka, Liwia"]
[Result "1-0"]
[ECO "B84"]
[WhiteElo "2340"]
[BlackElo "1934"]
[Annotator "ChessBase"]
[PlyCount "101"]
[EventDate "2020.08.06"]
[EventType "swiss"]
[EventCountry "POL"]
[SourceTitle "playchess.com"]
[Source "ChessBase"]
[SourceQuality "1"]
[TimeControl "40/5400+30:1800+30"]

1. e4 {[%emt 0:00:00]} c5 {[%emt 0:00:00]} 2. Nf3 {[%emt 0:00:00]} d6 {[%emt 0:00:00]} 3. d4 {[%emt 0:00:00]} cxd4 {[%emt 0:00:01]} 4. Nxd4 {[%emt 0:00:00]} Nf6 {[%emt 0:00:22]} 5. Nc3 {[%emt 0:00:00]} e6 {[%emt 0:00:12]} 6. Be2 {[%emt 0:00:03]} a6 {[%emt 0:00:14]} 7. a4 {[%emt 0:00:42]} Be7 {[%emt 0:00:21]} 8. O-O {[%emt 0:00:07]} O-O {[%emt 0:00:12]} 9. Be3 {[%emt 0:00:16]} Nc6 {[%emt 0:00:17]} 10. Kh1 {[%emt 0:01:25]} Nxd4 {[%emt 0:06:44]} 11. Qxd4 {[%emt 0:02:05]} Bd7 {[%emt 0:00:21]} 12. Rad1 {[%emt 0:01:25]} Qc7 {[%emt 0:02:38]} 13. f4 {[%emt 0:01:19]} Bc6 {[%emt 0:00:36]} 14. Bf3 {[%emt 0:04:03]} Rad8 {[%emt 0:08:21]} 15. Qc4 {[%emt 0:00:51]} Rc8 {[%emt 0:05:42]} 16. Qb3 {[%emt 0:01:10]} b5 {[%emt 0:07:49]} 17. axb5 {[%emt 0:02:02]} axb5 {[%emt 0:05:32]} 18. Nxb5 {[%emt 0:00:08]} Bxb5 {[%emt 0:01:50]} 19. Qxb5 {[%emt 0:00:06]} Rb8 {[%emt 0:00:19]} 20. Qd3 {[%emt 0:00:24]} Rxb2 {[%emt 0:00:26]} 21. Bd4 {[%emt 0:01:18]} Ra2 {[%emt 0:04:33]} 22. e5 {[%emt 0:01:47]} dxe5 {[%emt 0:04:04]} 23. fxe5 {[%emt 0:00:06]} Nd7 {[%emt 0:01:04]} 24. Rfe1 {[%emt 0:06:30]} Rd8 {[%emt 0:08:35]} 25. c3 {[%emt 0:02:24]} Ra5 {[%emt 0:02:10]} 26. Qe3 {[%emt 0:04:31]} h6 {[%emt 0:02:39]} 27. Bh5 {[%emt 0:05:24]} Bg5 {[%emt 0:03:26]} 28. Qf2 {[%emt 0:00:11]} g6 {[%emt 0:02:07]} 29. h4 {[%emt 0:11:34]} Be7 {[%emt 0:03:19]} 30. Rf1 {[%emt 0:00:20]} Rf8 {[%emt 0:01:16]} 31. Qg3 {[%emt 0:00:12]} Nxe5 {[%emt 0:03:39]} 32. Rde1 {[%emt 0:00:07]} Bd6 {[%emt 0:01:05]} 33. Rf6 {[%emt 0:00:54]} Kh7 {[%emt 0:12:25]} 34. Qf4 {[%emt 0:09:25]} Rd5 {[%emt 0:09:43]} 35. Rf1 {[%emt 0:06:31]} Qe7 {[%emt 0:00:11]} 36. Qe4 {[%emt 0:01:08]} Kg7 {[%emt 0:01:07]} 37. Rxf7+ {[%emt 0:07:44]} Qxf7 {[%emt 0:01:48]} 38. Rxf7+ {[%emt 0:00:10]} Kxf7 {[%emt 0:00:16]} 39. c4 {[%emt 0:01:32]} Rxd4 {[%emt 0:00:42]} 40. Qxd4 {[%emt 0:00:00]} Ke7 {[%emt 0:00:00]} 41. Be2 {[%emt 0:02:07]} Rc8 {[%emt 0:03:44]} 42. g4 {[%emt 0:01:18]} g5 {[%emt 0:01:04]} 43. h5 {[%emt 0:02:14]} Rc5 {[%emt 0:00:59]} 44. Qe4 {[%emt 0:01:17]} Nf7 {[%emt 0:07:39]} 45. Bd3 {[%emt 0:00:37]} Ra5 {[%emt 0:02:33]} 46. Qh7 {[%emt 0:00:45]} Ra1+ {[%emt 0:00:40]} 47. Kg2 {[%emt 0:00:38]} Ra2+ {[%emt 0:00:36]} 48. Kf1 {[%emt 0:00:59]} Ra1+ {[%emt 0:00:51]} 49. Ke2 {[%emt 0:00:36]} Ra2+ {[%emt 0:00:37]} 50. Kd1 {[%emt 0:00:38]} Kf8 {[%emt 0:01:43]} 51. Bg6 {[%emt 0:00:50]} 1-0

[Event "4th Memorial Warakomska-A 2020"]
[Site "Suwalki"]
[Date "2020.08.08"]
[Round "4.5"]
[White "Kucza, Karol"]
[Black "Shilov, Sergej"]
[Result "0-1"]
[ECO "B06"]
[WhiteElo "2245"]
[BlackElo "2121"]
[Annotator "ChessBase"]
[PlyCount "96"]
[EventDate "2020.08.06"]
[EventType "swiss"]
[EventCountry "POL"]
[SourceTitle "playchess.com"]
[Source "ChessBase"]
[SourceQuality "1"]
[TimeControl "40/5400+30:1800+30"]

1. e4 g6 2. d4 Bg7 3. Nc3 a6 4. Be3 b5 5. Qd2 Bb7 6. f3 d6 7. h4 h5 8. Nh3 Nd7 9. a4 b4 10. Ne2 c5 11. Ng5 Ngf6 12. a5 O-O 13. d5 Ne5 14. Nf4 Bc8 15. c4 bxc3 16. bxc3 Bd7 17. c4 Rb8 18. Qc2 Nh7 19. Ra2 Qc7 20. Be2 Rb7 21. Nxh7 Kxh7 22. Nh3 Rfb8 23. Ng5+ Kg8 24. Bc1 Rb3 25. O-O Qb7 26. Kh1 Qc8 27. Kh2 Rc3 28. Qxc3 Ng4+ 29. fxg4 Bxc3 30. gxh5 f6 31. Nh3 gxh5 32. Bxh5 Bg4 33. Bxg4 Qxg4 34. Ra3 Be5+ 35. Bf4 Qe2 36. Rg3+ Kh7 37. Rf2 Qxe4 38. Bxe5 dxe5 39. d6 Qxh4 40. dxe7 Re8 41. Rgf3 Kg6 42. g4 e4 43. Rf4 e3 44. Re2 Rxe7 45. g5 Qh5 46. Rg2 fxg5 47. Rfg4 Re5 48. Kg3 Kf6 0-1

[Event "4th Memorial Warakomska-A 2020"]
[Site "Suwalki"]
[Date "2020.08.08"]
[Round "4.6"]
[White "Rudzinska, Michalina"]
[Black "Rasti, Arvin"]
[Result "1/2-1/2"]
[ECO "C06"]
[WhiteElo "2080"]
[BlackElo "2139"]
[Annotator "ChessBase"]
[PlyCount "93"]
[EventDate "2020.08.06"]
[EventType "swiss"]
[EventCountry "POL"]
[SourceTitle "playchess.com"]
[Source "ChessBase"]
[SourceQuality "1"]
[TimeControl "40/5400+30:1800+30"]

1. e4 {[%emt 0:00:00]} e6 {[%emt 0:00:08]} 2. d4 {[%emt 0:00:00]} d5 {[%emt 0:00:09]} 3. Nd2 {[%emt 0:00:00]} Nf6 {[%emt 0:00:08]} 4. e5 {[%emt 0:00:00]} Nfd7 {[%emt 0:00:06]} 5. c3 {[%emt 0:00:08]} c5 {[%emt 0:00:07]} 6. Bd3 {[%emt 0:00:05]} Nc6 {[%emt 0:00:06]} 7. Ne2 {[%emt 0:00:06]} cxd4 {[%emt 0:00:06]} 8. cxd4 {[%emt 0:00:04]} f6 {[%emt 0:00:07]} 9. exf6 {[%emt 0:00:06]} Nxf6 {[%emt 0:00:05]} 10. Nf3 {[%emt 0:00:07]} Bd6 {[%emt 0:00:05]} 11. O-O {[%emt 0:00:08]} Qc7 {[%emt 0:00:18]} 12. g3 {[%emt 0:00:15]} O-O {[%emt 0:05:06]} 13. Bf4 {[%emt 0:00:05]} Bd7 {[%emt 0:05:01]} 14. Rc1 {[%emt 0:01:46]} a6 {[%emt 0:01:20]} 15. Ne5 {[%emt 0:02:39]} Nh5 {[%emt 0:05:56]} 16. Qc2 {[%emt 0:04:52]} g6 {[%emt 0:01:25]} 17. Bxg6 {[%emt 0:12:13]} hxg6 {[%emt 0:00:20]} 18. Qxg6+ {[%emt 0:00:07]} Ng7 {[%emt 0:00:08]} 19. Ng4 {[%emt 0:00:23]} Bxf4 {[%emt 0:23:54]} 20. Nxf4 {[%emt 0:00:32]} Be8 {[%emt 0:01:02]} 21. Nf6+ {[%emt 0:05:46]} Rxf6 {[%emt 0:00:08]} 22. Qxf6 {[%emt 0:00:03]} Qf7 {[%emt 0:00:42]} 23. Qxf7+ {[%emt 0:05:15]} Bxf7 {[%emt 0:01:19]} 24. g4 {[%emt 0:05:14]} Nxd4 {[%emt 0:03:33]} 25. Rc7 {[%emt 0:00:26]} e5 {[%emt 0:00:45]} 26. Nd3 {[%emt 0:02:15]} Nf3+ {[%emt 0:01:04]} 27. Kg2 {[%emt 0:00:06]} Ne6 {[%emt 0:02:20]} 28. Rxb7 {[%emt 0:04:18]} e4 {[%emt 0:00:11]} 29. Kg3 {[%emt 0:02:40]} d4 {[%emt 0:01:05]} 30. Nf4 {[%emt 0:11:58]} Nxf4 {[%emt 0:02:59]} 31. Kxf4 {[%emt 0:02:34]} d3 {[%emt 0:00:47]} 32. Rd1 {[%emt 0:03:39]} Bg6 {[%emt 0:02:18]} 33. h4 {[%emt 0:02:20]} Rf8+ {[%emt 0:00:54]} 34. Kg3 {[%emt 0:00:37]} Ne5 {[%emt 0:06:47]} 35. h5 {[%emt 0:02:06]} Rf3+ {[%emt 0:01:38]} 36. Kg2 {[%emt 0:01:44]} Bf7 {[%emt 0:01:08]} 37. Re7 {[%emt 0:02:05]} Nxg4 {[%emt 0:07:32]} 38. Rxe4 {[%emt 0:01:57]} Nxf2 {[%emt 0:01:44]} 39. Rg4+ {[%emt 0:12:36]} Kh7 {[%emt 0:01:03]} 40. Kxf3 {[%emt 0:00:00]} Nxd1 {[%emt 0:00:00]} 41. Rb4 {[%emt 0:16:11]} Bxh5+ {[%emt 0:04:41]} 42. Kf4 {[%emt 0:00:57]} Kg7 {[%emt 0:03:17]} 43. Rb6 {[%emt 0:05:42]} Be2 {[%emt 0:05:00]} 44. Rxa6 {[%emt 0:07:10]} Nxb2 {[%emt 0:00:18]} 45. Rd6 {[%emt 0:00:35]} Bf1 {[%emt 0:01:22]} 46. Rd4 {[%emt 0:01:46]} Be2 {[%emt 0:06:02]} 47. Ke4 1/2-1/2

[Event "4th Memorial Warakomska-A 2020"]
[Site "Suwalki"]
[Date "2020.08.08"]
[Round "4.7"]
[White "Praczukowski, Stanislaw"]
[Black "Szustakowski, Antoni"]
[Result "1/2-1/2"]
[ECO "C07"]
[WhiteElo "2132"]
[BlackElo "2295"]
[Annotator "ChessBase"]
[PlyCount "119"]
[EventDate "2020.08.06"]
[EventType "swiss"]
[EventCountry "POL"]
[SourceTitle "playchess.com"]
[Source "ChessBase"]
[SourceQuality "1"]
[TimeControl "40/5400+30:1800+30"]

1. e4 {[%emt 0:00:00]} e6 {[%emt 0:00:00]} 2. d4 {[%emt 0:00:00]} d5 {[%emt 0:00:00]} 3. Nd2 {[%emt 0:00:00]} c5 {[%emt 0:00:00]} 4. Ngf3 {[%emt 0:00:00]} cxd4 {[%emt 0:00:00]} 5. exd5 {[%emt 0:00:06]} Qxd5 {[%emt 0:00:00]} 6. Bc4 {[%emt 0:00:12]} Qd6 {[%emt 0:00:03]} 7. O-O {[%emt 0:00:15]} Nc6 {[%emt 0:00:14]} 8. Nb3 {[%emt 0:00:30]} Nf6 {[%emt 0:00:06]} 9. Nbxd4 {[%emt 0:00:35]} Nxd4 {[%emt 0:00:05]} 10. Nxd4 {[%emt 0:00:11]} Bd7 {[%emt 0:00:06]} 11. c3 {[%emt 0:14:25]} Qc7 {[%emt 0:00:43]} 12. Qe2 {[%emt 0:04:03]} a6 {[%emt 0:00:10]} 13. Bg5 {[%emt 0:01:11]} O-O-O {[%emt 0:01:49]} 14. Rfe1 {[%emt 0:14:33]} Bd6 {[%emt 0:06:47]} 15. Nf3 {[%emt 0:02:47]} h6 {[%emt 0:05:40]} 16. Bxf6 {[%emt 0:12:30]} gxf6 {[%emt 0:00:05]} 17. Bd3 {[%emt 0:06:12]} Rhg8 {[%emt 0:07:50]} 18. g3 {[%emt 0:10:14]} h5 {[%emt 0:07:17]} 19. Nh4 {[%emt 0:04:30]} Bc5 {[%emt 0:02:57]} 20. b4 {[%emt 0:04:44]} Rxg3+ {[%emt 0:11:26]} 21. hxg3 {[%emt 0:00:50]} Qxg3+ {[%emt 0:00:05]} 22. Ng2 {[%emt 0:01:08]} Bc6 {[%emt 0:00:04]} 23. Be4 {[%emt 0:04:00]} Bxe4 {[%emt 0:00:59]} 24. Qxe4 {[%emt 0:00:06]} Bxf2+ {[%emt 0:00:23]} 25. Kf1 {[%emt 0:00:14]} Bxe1 {[%emt 0:00:06]} 26. Qxe1 {[%emt 0:02:03]} Qf3+ {[%emt 0:03:06]} 27. Kg1 {[%emt 0:10:41]} Rg8 {[%emt 0:04:26]} 28. Qf1 {[%emt 0:01:23]} Qg4 {[%emt 0:01:09]} 29. Rd1 {[%emt 0:03:45]} e5 {[%emt 0:08:35]} 30. Rd3 {[%emt 0:01:16]} e4 {[%emt 0:00:53]} 31. Re3 {[%emt 0:00:21]} f5 {[%emt 0:06:15]} 32. Kh2 {[%emt 0:00:54]} h4 {[%emt 0:00:39]} 33. Qf2 {[%emt 0:00:51]} Rd8 {[%emt 0:08:46]} 34. Qxh4 {[%emt 0:01:24]} Qg7 {[%emt 0:02:24]} 35. Qf4 {[%emt 0:00:34]} Rh8+ {[%emt 0:01:20]} 36. Rh3 {[%emt 0:00:40]} Rxh3+ {[%emt 0:00:08]} 37. Kxh3 {[%emt 0:00:00]} Qxc3+ {[%emt 0:00:06]} 38. Ne3 {[%emt 0:00:45]} Qxb4 {[%emt 0:02:38]} 39. Qxf5+ {[%emt 0:00:16]} Kb8 {[%emt 0:00:13]} 40. Qxf7 {[%emt 0:00:00]} Qa3 {[%emt 0:00:00]} 41. Qf2 {[%emt 0:03:54]} b5 {[%emt 0:04:06]} 42. Kg4 {[%emt 0:01:50]} Qe7 {[%emt 0:06:07]} 43. Qf5 {[%emt 0:03:13]} Qg7+ {[%emt 0:05:34]} 44. Kf4 {[%emt 0:02:02]} Qh6+ {[%emt 0:00:39]} 45. Kxe4 {[%emt 0:03:26]} Qh1+ {[%emt 0:00:06]} 46. Kd4 {[%emt 0:07:42]} Qa1+ {[%emt 0:00:43]} 47. Kd5 {[%emt 0:00:19]} Qxa2+ {[%emt 0:01:46]} 48. Kc6 {[%emt 0:00:48]} Qg8 {[%emt 0:00:18]} 49. Qe5+ {[%emt 0:03:52]} Ka8 {[%emt 0:00:05]} 50. Qe7 {[%emt 0:03:59]} Qc8+ {[%emt 0:03:24]} 51. Kb6 {[%emt 0:00:11]} Qb8+ {[%emt 0:00:04]} 52. Ka5 {[%emt 0:00:42]} b4 {[%emt 0:00:20]} 53. Qe4+ {[%emt 0:00:41]} Qb7 {[%emt 0:00:04]} 54. Qxb7+ {[%emt 0:01:13]} Kxb7 {[%emt 0:00:06]} 55. Kxb4 {[%emt 0:00:04]} a5+ {[%emt 0:00:03]} 56. Ka3 {[%emt 0:00:03]} a4 {[%emt 0:00:05]} 57. Nc2 {[%emt 0:00:09]} Kc6 {[%emt 0:00:05]} 58. Nd4+ {[%emt 0:00:05]} Kd5 {[%emt 0:00:03]} 59. Nb3 {[%emt 0:00:04]} axb3 {[%emt 0:00:06]} 60. Kxb3 {[%emt 0:00:04]} 1/2-1/2

[Event "4th Memorial Warakomska-A 2020"]
[Site "Suwalki"]
[Date "2020.08.08"]
[Round "4.8"]
[White "Mulet, Piotr"]
[Black "Korbal, Arkadiusz"]
[Result "1-0"]
[ECO "B34"]
[WhiteElo "2217"]
[BlackElo "2113"]
[Annotator "ChessBase"]
[PlyCount "72"]
[EventDate "2020.08.06"]
[EventType "swiss"]
[EventCountry "POL"]
[SourceTitle "playchess.com"]
[Source "ChessBase"]
[SourceQuality "1"]
[TimeControl "40/5400+30:1800+30"]

1. e4 {[%emt 0:00:00]} c5 {[%emt 0:00:00]} 2. Nf3 {[%emt 0:00:00]} Nc6 {[%emt 0:00:21]} 3. d4 {[%emt 0:00:07]} cxd4 {[%emt 0:00:09]} 4. Nxd4 {[%emt 0:00:05]} g6 {[%emt 0:00:21]} 5. Nc3 {[%emt 0:00:28]} Bg7 {[%emt 0:00:13]} 6. Be3 {[%emt 0:00:24]} Nf6 {[%emt 0:00:29]} 7. f3 {[%emt 0:04:35]} O-O {[%emt 0:00:34]} 8. Nb3 {[%emt 0:00:57]} a5 {[%emt 0:03:23]} 9. Na4 {[%emt 0:13:20]} d5 {[%emt 0:13:12]} 10. Nb6 {[%emt 0:01:48]} Rb8 {[%emt 0:00:13]} 11. exd5 {[%emt 0:10:43]} Nb4 {[%emt 0:03:08]} 12. c4 {[%emt 0:00:33]} Bf5 {[%emt 0:15:23]} 13. Nd4 {[%emt 0:00:08]} Nd7 {[%emt 0:04:10]} 14. Nxf5 {[%emt 0:01:26]} gxf5 {[%emt 0:00:05]} 15. Nxd7 {[%emt 0:01:53]} Qxd7 {[%emt 0:00:07]} 16. a3 {[%emt 0:03:08]} Na6 {[%emt 0:01:03]} 17. Bd4 {[%emt 0:02:25]} e5 {[%emt 0:01:29]} 18. Bc3 {[%emt 0:00:25]} b5 {[%emt 0:04:59]} 19. cxb5 {[%emt 0:00:42]} Nc7 {[%emt 0:00:09]} 20. a4 {[%emt 0:01:02]} Nxd5 {[%emt 0:05:34]} 21. Bc4 {[%emt 0:01:28]} Rfd8 {[%emt 0:00:09]} 22. Qxd5 {[%emt 0:00:21]} Qxd5 {[%emt 0:00:08]} 23. Bxd5 {[%emt 0:00:05]} Rxd5 {[%emt 0:00:10]} 24. Rd1 {[%emt 0:07:23]} Rc5 {[%emt 0:00:05]} 25. O-O {[%emt 0:02:33]} e4 {[%emt 0:00:25]} 26. Bxg7 {[%emt 0:04:37]} Kxg7 {[%emt 0:00:06]} 27. fxe4 {[%emt 0:01:00]} fxe4 {[%emt 0:00:09]} 28. Rd4 {[%emt 0:01:49]} Re8 {[%emt 0:01:39]} 29. b4 {[%emt 0:00:30]} axb4 {[%emt 0:00:08]} 30. Rxb4 {[%emt 0:00:02]} e3 {[%emt 0:00:41]} 31. b6 {[%emt 0:00:52]} f5 {[%emt 0:05:31]} 32. Re1 {[%emt 0:02:09]} Rce5 {[%emt 0:01:00]} 33. g3 {[%emt 0:01:11]} Kf6 {[%emt 0:01:19]} 34. Kg2 {[%emt 0:00:45]} Ke6 {[%emt 0:00:51]} 35. b7 {[%emt 0:00:24]} Rb8 {[%emt 0:00:08]} 36. Kf3 {[%emt 0:00:12]} Kd5 1-0

[Event "4th Memorial Warakomska-A 2020"]
[Site "Suwalki"]
[Date "2020.08.08"]
[Round "4.9"]
[White "Backiel, Hubert"]
[Black "Bugajski, Robert"]
[Result "0-1"]
[ECO "B51"]
[WhiteElo "1943"]
[BlackElo "2081"]
[Annotator "ChessBase"]
[PlyCount "98"]
[EventDate "2020.08.06"]
[EventType "swiss"]
[EventCountry "POL"]
[SourceTitle "playchess.com"]
[Source "ChessBase"]
[SourceQuality "1"]
[TimeControl "40/5400+30:1800+30"]

1. e4 {[%emt 0:00:00]} c5 {[%emt 0:00:00]} 2. Nf3 {[%emt 0:00:00]} d6 {[%emt 0:00:00]} 3. Bb5+ {[%emt 0:00:00]} Nd7 {[%emt 0:00:07]} 4. a4 {[%emt 0:00:00]} a6 {[%emt 0:00:19]} 5. Be2 {[%emt 0:00:03]} Ngf6 {[%emt 0:00:41]} 6. Nc3 {[%emt 0:00:14]} e6 {[%emt 0:00:26]} 7. a5 {[%emt 0:00:47]} Be7 {[%emt 0:00:55]} 8. O-O {[%emt 0:02:46]} O-O {[%emt 0:00:25]} 9. d4 {[%emt 0:11:05]} Qc7 {[%emt 0:11:43]} 10. Be3 {[%emt 0:06:27]} cxd4 {[%emt 0:16:34]} 11. Nxd4 {[%emt 0:02:00]} b5 {[%emt 0:05:11]} 12. axb6 {[%emt 0:04:21]} Nxb6 {[%emt 0:00:02]} 13. Nb3 {[%emt 0:20:06]} Nc4 {[%emt 0:20:08]} 14. Nb5 {[%emt 0:11:43]} Qb8 {[%emt 0:03:52]} 15. Bxc4 {[%emt 0:04:06]} axb5 {[%emt 0:00:02]} 16. Rxa8 {[%emt 0:00:02]} Qxa8 {[%emt 0:00:02]} 17. Bxb5 {[%emt 0:00:02]} Qxe4 {[%emt 0:01:47]} 18. Bd3 {[%emt 0:01:02]} Qh4 {[%emt 0:05:55]} 19. g3 {[%emt 0:06:35]} Qh3 {[%emt 0:01:04]} 20. f3 {[%emt 0:00:24]} Bb7 {[%emt 0:01:31]} 21. Nd4 {[%emt 0:01:57]} Ng4 {[%emt 0:04:15]} 22. Qe2 {[%emt 0:01:53]} Nxe3 {[%emt 0:04:55]} 23. Qxe3 {[%emt 0:00:02]} Rc8 {[%emt 0:01:38]} 24. Ra1 {[%emt 0:07:27]} Bf6 {[%emt 0:01:08]} 25. Be4 {[%emt 0:08:19]} Bxe4 {[%emt 0:02:25]} 26. Qxe4 {[%emt 0:00:35]} d5 {[%emt 0:01:31]} 27. Qd3 {[%emt 0:01:34]} Qh5 {[%emt 0:01:52]} 28. c3 {[%emt 0:05:56]} Bxd4+ {[%emt 0:03:00]} 29. cxd4 {[%emt 0:00:02]} Qg5 {[%emt 0:00:41]} 30. Kf2 {[%emt 0:01:10]} Qe7 {[%emt 0:00:31]} 31. Ra3 {[%emt 0:01:18]} g6 {[%emt 0:00:52]} 32. Rc3 {[%emt 0:01:11]} Rb8 {[%emt 0:00:23]} 33. b3 {[%emt 0:00:51]} Qa3 {[%emt 0:01:27]} 34. Qc2 {[%emt 0:00:22]} Kg7 {[%emt 0:00:13]} 35. Ke3 {[%emt 0:01:03]} Qa1 {[%emt 0:01:06]} 36. Kd3 {[%emt 0:01:57]} Rb4 {[%emt 0:00:56]} 37. Qd2 {[%emt 0:00:28]} Qb1+ {[%emt 0:00:27]} 38. Ke2 {[%emt 0:00:11]} Rxb3 {[%emt 0:00:32]} 39. Rxb3 {[%emt 0:00:02]} Qxb3 {[%emt 0:00:02]} 40. Kf2 {[%emt 0:00:00]} f6 {[%emt 0:00:00]} 41. Kg2 {[%emt 0:03:07]} g5 {[%emt 0:05:24]} 42. f4 {[%emt 0:01:21]} h6 {[%emt 0:04:44]} 43. fxg5 {[%emt 0:01:18]} hxg5 {[%emt 0:00:04]} 44. h4 {[%emt 0:03:36]} gxh4 {[%emt 0:01:07]} 45. gxh4 {[%emt 0:01:03]} Qb1 {[%emt 0:00:31]} 46. Kh2 {[%emt 0:08:07]} Qe4 {[%emt 0:00:26]} 47. Qf2 {[%emt 0:00:38]} Qg4 {[%emt 0:01:22]} 48. Kh1 {[%emt 0:00:43]} Kg6 {[%emt 0:00:31]} 49. Qc2+ {[%emt 0:01:07]} Qe4+ {[%emt 0:00:21]} 0-1

[Event "4th Memorial Warakomska-A 2020"]
[Site "Suwalki"]
[Date "2020.08.08"]
[Round "4.10"]
[White "Malaczek, Mateusz"]
[Black "Jakhari, Ansh"]
[Result "1-0"]
[ECO "A20"]
[WhiteElo "2036"]
[BlackElo "1908"]
[Annotator "ChessBase"]
[PlyCount "105"]
[EventDate "2020.08.06"]
[EventType "swiss"]
[EventCountry "POL"]
[SourceTitle "playchess.com"]
[Source "ChessBase"]
[SourceQuality "1"]
[TimeControl "40/5400+30:1800+30"]

1. c4 {[%emt 0:00:00]} e5 {[%emt 0:00:00]} 2. g3 {[%emt 0:00:00]} Nf6 {[%emt 0:00:17]} 3. Bg2 {[%emt 0:00:00]} d5 {[%emt 0:00:14]} 4. cxd5 {[%emt 0:00:00]} Nxd5 {[%emt 0:00:07]} 5. Nf3 {[%emt 0:00:07]} Nc6 {[%emt 0:00:14]} 6. O-O {[%emt 0:00:14]} Be7 {[%emt 0:00:37]} 7. d4 {[%emt 0:00:16]} exd4 {[%emt 0:11:23]} 8. Nxd4 {[%emt 0:00:09]} O-O {[%emt 0:00:50]} 9. Nxc6 {[%emt 0:03:37]} bxc6 {[%emt 0:00:05]} 10. a3 {[%emt 0:01:29]} Be6 {[%emt 0:04:20]} 11. Qc2 {[%emt 0:02:23]} Qd6 {[%emt 0:11:39]} 12. e4 {[%emt 0:06:49]} Nb6 {[%emt 0:01:01]} 13. Bf4 {[%emt 0:02:24]} Qc5 {[%emt 0:00:36]} 14. Nc3 {[%emt 0:02:41]} Nc4 {[%emt 0:05:41]} 15. Rfc1 {[%emt 0:16:14]} Rab8 {[%emt 0:06:05]} 16. Na4 {[%emt 0:01:34]} Qd4 {[%emt 0:03:47]} 17. b4 {[%emt 0:08:15]} g5 {[%emt 0:05:42]} 18. Rd1 {[%emt 0:03:18]} Qg7 {[%emt 0:00:12]} 19. Bxc7 {[%emt 0:07:35]} Rb7 {[%emt 0:00:45]} 20. Bf1 {[%emt 0:00:28]} Bf6 {[%emt 0:09:36]} 21. Bxc4 {[%emt 0:13:42]} Bxa1 {[%emt 0:00:20]} 22. Bd6 {[%emt 0:00:24]} Bg4 {[%emt 0:06:16]} 23. Bxf8 {[%emt 0:02:35]} Bxd1 {[%emt 0:02:04]} 24. Qxd1 {[%emt 0:00:09]} Qf6 {[%emt 0:02:01]} 25. Nc5 {[%emt 0:06:10]} Rc7 {[%emt 0:00:11]} 26. Qd6 {[%emt 0:04:54]} Rc8 {[%emt 0:01:09]} 27. Qxf6 {[%emt 0:00:23]} Bxf6 {[%emt 0:01:36]} 28. Bd6 {[%emt 0:00:06]} Bb2 {[%emt 0:00:23]} 29. e5 {[%emt 0:02:05]} Bxa3 {[%emt 0:01:36]} 30. e6 {[%emt 0:00:35]} Bxb4 {[%emt 0:02:50]} 31. exf7+ {[%emt 0:00:13]} Kg7 {[%emt 0:00:05]} 32. f8=Q+ {[%emt 0:01:22]} Rxf8 {[%emt 0:00:03]} 33. Bxf8+ {[%emt 0:00:14]} Kxf8 {[%emt 0:00:05]} 34. Ne6+ {[%emt 0:00:08]} Ke7 {[%emt 0:00:04]} 35. Nxg5 {[%emt 0:00:16]} Kd6 {[%emt 0:00:21]} 36. Kf1 {[%emt 0:01:04]} Kc5 {[%emt 0:00:06]} 37. Bb3 {[%emt 0:01:03]} Kd4 {[%emt 0:00:10]} 38. Ke2 {[%emt 0:00:22]} Kc3 {[%emt 0:00:10]} 39. Ba4 {[%emt 0:00:15]} c5 {[%emt 0:00:15]} 40. Ne6 {[%emt 0:00:00]} c4 {[%emt 0:00:00]} 41. f4 {[%emt 0:02:41]} Kb2 {[%emt 0:00:29]} 42. f5 {[%emt 0:00:23]} c3 {[%emt 0:00:19]} 43. Kd3 {[%emt 0:00:28]} Be7 {[%emt 0:00:06]} 44. Nc7 {[%emt 0:00:23]} a5 {[%emt 0:00:32]} 45. Nd5 {[%emt 0:00:08]} Bb4 {[%emt 0:00:06]} 46. f6 {[%emt 0:00:12]} h6 {[%emt 0:00:34]} 47. f7 {[%emt 0:00:06]} h5 {[%emt 0:00:16]} 48. Nxb4 {[%emt 0:00:18]} axb4 {[%emt 0:00:05]} 49. f8=Q {[%emt 0:00:05]} b3 {[%emt 0:00:07]} 50. Qb4 {[%emt 0:00:17]} c2 {[%emt 0:00:10]} 51. Qxb3+ {[%emt 0:00:05]} Ka1 {[%emt 0:00:04]} 52. Qa3+ {[%emt 0:00:06]} Kb1 {[%emt 0:00:09]} 53. Bxc2# 1-0

[Event "4th Memorial Warakomska-A 2020"]
[Site "Suwalki"]
[Date "2020.08.08"]
[Round "4.11"]
[White "Deruelle Sala, Albert"]
[Black "Krasiewicz, Robert"]
[Result "1-0"]
[ECO "B06"]
[WhiteElo "2078"]
[BlackElo "2033"]
[Annotator "ChessBase"]
[PlyCount "91"]
[EventDate "2020.08.06"]
[EventType "swiss"]
[EventCountry "POL"]
[SourceTitle "playchess.com"]
[Source "ChessBase"]
[SourceQuality "1"]
[TimeControl "40/5400+30:1800+30"]

1. d4 {[%emt 0:00:00]} g6 {[%emt 0:00:00]} 2. e4 {[%emt 0:00:46]} Bg7 {[%emt 0:00:00]} 3. Nc3 {[%emt 0:00:11]} d6 {[%emt 0:00:00]} 4. f4 {[%emt 0:00:09]} a6 {[%emt 0:00:00]} 5. a4 {[%emt 0:00:13]} Nc6 {[%emt 0:00:14]} 6. d5 {[%emt 0:04:46]} Nb4 {[%emt 0:01:36]} 7. Nf3 {[%emt 0:01:39]} c6 {[%emt 0:03:38]} 8. dxc6 {[%emt 0:02:28]} bxc6 {[%emt 0:04:52]} 9. Be3 {[%emt 0:00:24]} c5 {[%emt 0:05:13]} 10. Bc4 {[%emt 0:00:31]} Bb7 {[%emt 0:03:13]} 11. O-O {[%emt 0:01:05]} Nf6 {[%emt 0:00:42]} 12. Ng5 {[%emt 0:00:56]} O-O {[%emt 0:01:17]} 13. e5 {[%emt 0:01:34]} Ne8 {[%emt 0:02:04]} 14. e6 {[%emt 0:05:54]} f5 {[%emt 0:01:20]} 15. Nf7 {[%emt 0:04:39]} Qc7 {[%emt 0:03:28]} 16. Nd5 {[%emt 0:03:49]} Nxd5 {[%emt 0:01:49]} 17. Bxd5 {[%emt 0:00:02]} Bxd5 {[%emt 0:00:33]} 18. Qxd5 {[%emt 0:00:11]} Nf6 {[%emt 0:00:16]} 19. Qc4 {[%emt 0:01:13]} Rfb8 {[%emt 0:09:36]} 20. b3 {[%emt 0:10:54]} Rb4 {[%emt 0:28:09]} 21. Qe2 {[%emt 0:02:18]} Ng4 {[%emt 0:01:12]} 22. Bd2 {[%emt 0:01:12]} Re4 {[%emt 0:02:25]} 23. Qf3 {[%emt 0:00:13]} Bxa1 {[%emt 0:01:40]} 24. Rxa1 {[%emt 0:01:44]} c4 {[%emt 0:12:27]} 25. Rf1 {[%emt 0:02:22]} Rc8 {[%emt 0:05:15]} 26. Ng5 {[%emt 0:06:09]} d5 {[%emt 0:04:38]} 27. h3 {[%emt 0:06:52]} Qb6+ {[%emt 0:02:36]} 28. Kh1 {[%emt 0:01:41]} Nf6 {[%emt 0:00:01]} 29. g4 {[%emt 0:00:52]} c3 {[%emt 0:01:00]} 30. Be1 {[%emt 0:01:33]} Re3 {[%emt 0:01:41]} 31. Qg2 {[%emt 0:00:35]} d4 {[%emt 0:01:16]} 32. Bf2 {[%emt 0:02:08]} Qc6 {[%emt 0:02:30]} 33. Bxe3 {[%emt 0:01:02]} Qxg2+ {[%emt 0:00:05]} 34. Kxg2 {[%emt 0:00:08]} dxe3 {[%emt 0:00:03]} 35. gxf5 {[%emt 0:01:34]} h6 {[%emt 0:00:53]} 36. Nf7 {[%emt 0:00:19]} gxf5 {[%emt 0:01:39]} 37. Nxh6+ {[%emt 0:00:50]} Kh7 {[%emt 0:00:01]} 38. Nxf5 {[%emt 0:00:12]} Nd5 {[%emt 0:00:01]} 39. Kf3 {[%emt 0:02:41]} Rf8 {[%emt 0:00:59]} 40. Ke4 {[%emt 0:00:00]} Nc7 {[%emt 0:00:00]} 41. Nd4 {[%emt 0:01:59]} Rf6 {[%emt 0:02:13]} 42. f5 {[%emt 0:00:32]} Rh6 {[%emt 0:00:01]} 43. Rf3 {[%emt 0:00:31]} Rh4+ {[%emt 0:01:32]} 44. Kxe3 {[%emt 0:00:52]} Kg7 {[%emt 0:00:36]} 45. f6+ {[%emt 0:00:31]} Kg8 {[%emt 0:01:09]} 46. Nf5 {[%emt 0:01:05]} 1-0